Workbook

Sheet dicas
A1: DICAS DE MODELO
A2: Há uma maneira fácil de alternar entre a planilha de resumo de Tendências de despesas e os detalhes de despesas mensais?
A3: Para navegar rapidamente para as despesas de um mês específico, clique no link de navegação associado acima do gráfico, como o link de navegação Jan na célula B2. Para retornar à planilha Tendências de despesas, clique no link de navegação Resumo na célula D1.
A4: Para retornar para esta planilha de dicas, selecione N2 na planilha de resumo. De qualquer planilha de mês, selecione E1.
A5: Como posso adicionar um novo Tipo de despesa no Resumo de despesas ou novas despesas mensais?
A6: O Resumo de despesas abaixo do gráfico e os detalhes de despesas de cada mês são tabelas do Excel. Para adicionar novas linhas em qualquer tabela do Excel, siga um destes procedimentos:
A7: =ROW(A1)&". Se a tabela não tiver uma linha de Total, comece a digitar abaixo da tabela, e ela será expandida automaticamente quando você pressionar as teclas Enter ou Tab." -> 1. Se a tabela não tiver uma linha de Total, comece a digitar abaixo da tabela, e ela será expandida automaticamente quando você pressionar as teclas Enter ou Tab.
A8: =ROW(A2)&". Coloque o ponteiro da célula na última célula acima da linha de Total, como o total da última despesa, e pressione a tecla Tab." -> 2. Coloque o ponteiro da célula na última célula acima da linha de Total, como o total da última despesa, e pressione a tecla Tab.
A9: =ROW(A3)&". Clique com o botão direito do mouse na tabela e, no menu pop-up, aponte para Inserir e clique em Linhas de Tabela Acima ou Linhas de Tabela Abaixo." -> 3. Clique com o botão direito do mouse na tabela e, no menu pop-up, aponte para Inserir e clique em Linhas de Tabela Acima ou Linhas de Tabela Abaixo.
A10: =ROW(A4)&". No canto inferior direito da tabela, coloque o mouse sobre a alça de dimensionamento da tabela e arraste para baixo para aumentar o número de linhas de tabela disponíveis." -> 4. No canto inferior direito da tabela, coloque o mouse sobre a alça de dimensionamento da tabela e arraste para baixo para aumentar o número de linhas de tabela disponíveis.
A11: Insira a despesa na planilha Resumo da tabela ResumoDespesas, na coluna Despesas.
A12: Adicione o valor da despesa para cada tipo de despesa na planilha do mês correspondente.
A13: Por exemplo: "Despesa 1" ocorre nos meses Jan a Jun e Dez.
A14: =ROW(A1)&". A Despesa 1 é inserida na planilha de resumo em Despesa na tabela ResumoDespesas (como o título para o tipo de despesa)" -> 1. A Despesa 1 é inserida na planilha de resumo em Despesa na tabela ResumoDespesas (como o título para o tipo de despesa)
A15: =ROW(A2)&". Para cada mês de ocorrência da despesa, insira o valor da despesa na planilha de mês correspondente." -> 2. Para cada mês de ocorrência da despesa, insira o valor da despesa na planilha de mês correspondente.
A16: =ROW(A3)&". O tipo de despesa da planilha ResumoDespesas cria uma lista de categorias para a coluna Categoria na planilha de cada mês." -> 3. O tipo de despesa da planilha ResumoDespesas cria uma lista de categorias para a coluna Categoria na planilha de cada mês.
A17: =ROW(A4)&". Use a lista de categorias na coluna Categoria para selecionar o tipo de despesa correspondente para o valor de despesa inserido" -> 4. Use a lista de categorias na coluna Categoria para selecionar o tipo de despesa correspondente para o valor de despesa inserido
A18: =ROW(A5)&". Para adicionar novas despesas para qualquer mês, adicione uma nova linha à tabela ResumoDespesas na planilha de resumo e insira os detalhes de despesas correspondentes na planilha de mês à qual ela se aplica." -> 5. Para adicionar novas despesas para qualquer mês, adicione uma nova linha à tabela ResumoDespesas na planilha de resumo e insira os detalhes de despesas correspondentes na planilha de mês à qual ela se aplica.

Sheet resumo
A1: TENDÊNCIAS DE DESPESAS
B2: Jan | C2: Fev | D2: Mar | E2: Abr | F2: Mai | G2: Jun | H2: Jul | I2: Ago | J2: Set | K2: Out | L2: Nov | M2: Dez | N2: Dicas
A4: Despesas | B4: Jan | C4: Fev | D4: Mar | E4: Abr | F4: Mai | G4: Jun | H4: Jul | I4: Ago | J4: Set | K4: Out | L4: Nov | M4: Dez | N4: Total | O4: Tendência
A5: Despesa 1 | B5: =SUMIFS(DespJan[Valor], DespJan[Categoria], ResumoDespesas[[#This Row],[Despesas]]) -> 33.00 | C5: =SUMIFS(DespFev[Valor], DespFev[Categoria], ResumoDespesas[[#This Row],[Despesas]]) -> 375.00 | D5: =SUMIFS(DespMar[Valor], DespMar[Categoria], ResumoDespesas[[#This Row],[Despesas]]) -> 33.00 | E5: =SUMIFS(DespAbr[Valor], DespAbr[Categoria], ResumoDespesas[[#This Row],[Despesas]]) -> 45.00 | F5: =SUMIFS(DespMai[Valor], DespMai[Categoria], ResumoDespesas[[#This Row],[Despesas]]) -> 375.00 | G5: =SUMIFS(DespJun[Valor], DespJun[Categoria], ResumoDespesas[[#This Row],[Despesas]]) -> 201.00 | H5: =SUMIFS(DespJul[Valor], DespJul[Categoria], ResumoDespesas[[#This Row],[Despesas]]) -> 0.00 | I5: =SUMIFS(DespAgo[Valor], DespAgo[Categoria], ResumoDespesas[[#This Row],[Despesas]]) -> 0.00 | J5: =SUMIFS(DespSet[Valor], DespSet[Categoria], ResumoDespesas[[#This Row],[Despesas]]) -> 0.00 | K5: =SUMIFS(DespOut[Valor], DespOut[Categoria], ResumoDespesas[[#This Row],[Despesas]]) -> 0.00 | L5: =SUMIFS(DespNov[Valor], DespNov[Categoria], ResumoDespesas[[#This Row],[Despesas]]) -> 0.00 | M5: =SUMIFS(DespDez[Valor], DespDez[Categoria], ResumoDespesas[[#This Row],[Despesas]]) -> 201.00 | N5: =SUM(ResumoDespesas[[#This Row],[Jan]:[Dez]]) -> 1,263.00
A6: Despesa 2 | B6: =SUMIFS(DespJan[Valor], DespJan[Categoria], ResumoDespesas[[#This Row],[Despesas]]) -> 238.00 | C6: =SUMIFS(DespFev[Valor], DespFev[Categoria], ResumoDespesas[[#This Row],[Despesas]]) -> 238.00 | D6: =SUMIFS(DespMar[Valor], DespMar[Categoria], ResumoDespesas[[#This Row],[Despesas]]) -> 238.00 | E6: =SUMIFS(DespAbr[Valor], DespAbr[Categoria], ResumoDespesas[[#This Row],[Despesas]]) -> 123.00 | F6: =SUMIFS(DespMai[Valor], DespMai[Categoria], ResumoDespesas[[#This Row],[Despesas]]) -> 111.00 | G6: =SUMIFS(DespJun[Valor], DespJun[Categoria], ResumoDespesas[[#This Row],[Despesas]]) -> 98.00 | H6: =SUMIFS(DespJul[Valor], DespJul[Categoria], ResumoDespesas[[#This Row],[Despesas]]) -> 0.00 | I6: =SUMIFS(DespAgo[Valor], DespAgo[Categoria], ResumoDespesas[[#This Row],[Despesas]]) -> 0.00 | J6: =SUMIFS(DespSet[Valor], DespSet[Categoria], ResumoDespesas[[#This Row],[Despesas]]) -> 0.00 | K6: =SUMIFS(DespOut[Valor], DespOut[Categoria], ResumoDespesas[[#This Row],[Despesas]]) -> 0.00 | L6: =SUMIFS(DespNov[Valor], DespNov[Categoria], ResumoDespesas[[#This Row],[Despesas]]) -> 0.00 | M6: =SUMIFS(DespDez[Valor], DespDez[Categoria], ResumoDespesas[[#This Row],[Despesas]]) -> 440.00 | N6: =SUM(ResumoDespesas[[#This Row],[Jan]:[Dez]]) -> 1,486.00
A7: Despesa 3 | B7: =SUMIFS(DespJan[Valor], DespJan[Categoria], ResumoDespesas[[#This Row],[Despesas]]) -> 110.00 | C7: =SUMIFS(DespFev[Valor], DespFev[Categoria], ResumoDespesas[[#This Row],[Despesas]]) -> 110.00 | D7: =SUMIFS(DespMar[Valor], DespMar[Categoria], ResumoDespesas[[#This Row],[Despesas]]) -> 110.00 | E7: =SUMIFS(DespAbr[Valor], DespAbr[Categoria], ResumoDespesas[[#This Row],[Despesas]]) -> 125.00 | F7: =SUMIFS(DespMai[Valor], DespMai[Categoria], ResumoDespesas[[#This Row],[Despesas]]) -> 333.00 | G7: =SUMIFS(DespJun[Valor], DespJun[Categoria], ResumoDespesas[[#This Row],[Despesas]]) -> 122.00 | H7: =SUMIFS(DespJul[Valor], DespJul[Categoria], ResumoDespesas[[#This Row],[Despesas]]) -> 0.00 | I7: =SUMIFS(DespAgo[Valor], DespAgo[Categoria], ResumoDespesas[[#This Row],[Despesas]]) -> 0.00 | J7: =SUMIFS(DespSet[Valor], DespSet[Categoria], ResumoDespesas[[#This Row],[Despesas]]) -> 0.00 | K7: =SUMIFS(DespOut[Valor], DespOut[Categoria], ResumoDespesas[[#This Row],[Despesas]]) -> 0.00 | L7: =SUMIFS(DespNov[Valor], DespNov[Categoria], ResumoDespesas[[#This Row],[Despesas]]) -> 0.00 | M7: =SUMIFS(DespDez[Valor], DespDez[Categoria], ResumoDespesas[[#This Row],[Despesas]]) -> 122.00 | N7: =SUM(ResumoDespesas[[#This Row],[Jan]:[Dez]]) -> 1,032.00
A8: Despesa 4 | B8: =SUMIFS(DespJan[Valor], DespJan[Categoria], ResumoDespesas[[#This Row],[Despesas]]) -> 426.00 | C8: =SUMIFS(DespFev[Valor], DespFev[Categoria], ResumoDespesas[[#This Row],[Despesas]]) -> 84.00 | D8: =SUMIFS(DespMar[Valor], DespMar[Categoria], ResumoDespesas[[#This Row],[Despesas]]) -> 84.00 | E8: =SUMIFS(DespAbr[Valor], DespAbr[Categoria], ResumoDespesas[[#This Row],[Despesas]]) -> 426.00 | F8: =SUMIFS(DespMai[Valor], DespMai[Categoria], ResumoDespesas[[#This Row],[Despesas]]) -> 125.00 | G8: =SUMIFS(DespJun[Valor], DespJun[Categoria], ResumoDespesas[[#This Row],[Despesas]]) -> 187.00 | H8: =SUMIFS(DespJul[Valor], DespJul[Categoria], ResumoDespesas[[#This Row],[Despesas]]) -> 0.00 | I8: =SUMIFS(DespAgo[Valor], DespAgo[Categoria], ResumoDespesas[[#This Row],[Despesas]]) -> 0.00 | J8: =SUMIFS(DespSet[Valor], DespSet[Categoria], ResumoDespesas[[#This Row],[Despesas]]) -> 0.00 | K8: =SUMIFS(DespOut[Valor], DespOut[Categoria], ResumoDespesas[[#This Row],[Despesas]]) -> 0.00 | L8: =SUMIFS(DespNov[Valor], DespNov[Categoria], ResumoDespesas[[#This Row],[Despesas]]) -> 0.00 | M8: =SUMIFS(DespDez[Valor], DespDez[Categoria], ResumoDespesas[[#This Row],[Despesas]]) -> 187.00 | N8: =SUM(ResumoDespesas[[#This Row],[Jan]:[Dez]]) -> 1,519.00
A9: Despesa 5 | B9: =SUMIFS(DespJan[Valor], DespJan[Categoria], ResumoDespesas[[#This Row],[Despesas]]) -> 54.00 | C9: =SUMIFS(DespFev[Valor], DespFev[Categoria], ResumoDespesas[[#This Row],[Despesas]]) -> 54.00 | D9: =SUMIFS(DespMar[Valor], DespMar[Categoria], ResumoDespesas[[#This Row],[Despesas]]) -> 109.00 | E9: =SUMIFS(DespAbr[Valor], DespAbr[Categoria], ResumoDespesas[[#This Row],[Despesas]]) -> 98.00 | F9: =SUMIFS(DespMai[Valor], DespMai[Categoria], ResumoDespesas[[#This Row],[Despesas]]) -> 33.00 | G9: =SUMIFS(DespJun[Valor], DespJun[Categoria], ResumoDespesas[[#This Row],[Despesas]]) -> 441.00 | H9: =SUMIFS(DespJul[Valor], DespJul[Categoria], ResumoDespesas[[#This Row],[Despesas]]) -> 0.00 | I9: =SUMIFS(DespAgo[Valor], DespAgo[Categoria], ResumoDespesas[[#This Row],[Despesas]]) -> 0.00 | J9: =SUMIFS(DespSet[Valor], DespSet[Categoria], ResumoDespesas[[#This Row],[Despesas]]) -> 0.00 | K9: =SUMIFS(DespOut[Valor], DespOut[Categoria], ResumoDespesas[[#This Row],[Despesas]]) -> 0.00 | L9: =SUMIFS(DespNov[Valor], DespNov[Categoria], ResumoDespesas[[#This Row],[Despesas]]) -> 0.00 | M9: =SUMIFS(DespDez[Valor], DespDez[Categoria], ResumoDespesas[[#This Row],[Despesas]]) -> 99.00 | N9: =SUM(ResumoDespesas[[#This Row],[Jan]:[Dez]]) -> 888.00
A10: Total | B10: =SUBTOTAL(109,B5:B9) -> 861.00 | C10: 861.00 | D10: 574.00 | E10: 817.00 | F10: 977.00 | G10: 1,049.00 | H10: 0.00 | I10: 0.00 | J10: 0.00 | K10: 0.00 | L10: 0.00 | M10: 1,049.00 | N10: 6,188.00

Sheet jan
A1: DESPESAS DE JANEIRO | D1: Resumo | E1: Dicas
A2: Data | B2: N.º da ordem de compra | C2: Valor | D2: Categoria | E2: Descrição
A3: =DATE(YEAR(TODAY()),1,4) -> 2016-01-04 | B3: A-12345 | C3: 33.00 | D3: Despesa 1 | E3: Suprimentos
A4: =DATE(YEAR(TODAY()),1,5) -> 2016-01-05 | B4: A-12346 | C4: 238.00 | D4: Despesa 2
C5: 342.00 | D5: Despesa 4
C6: 110.00 | D6: Despesa 3
C7: 84.00 | D7: Despesa 4
C8: 54.00 | D8: Despesa 5
A9: Total | C9: =SUBTOTAL(109,DespJan[Valor]) -> 861.00

Sheet fev
A1: DESPESAS DE FEVEREIRO | D1: Resumo | E1: Dicas
A2: Data | B2: N.º da ordem de compra | C2: Valor | D2: Categoria | E2: Descrição
A3: =DATE(YEAR(TODAY()),2,3) -> 2016-02-03 | B3: A-12345 | C3: 33.00 | D3: Despesa 1 | E3: Suprimentos
A4: =DATE(YEAR(TODAY()),2,4) -> 2016-02-04 | B4: A-12346 | C4: 238.00 | D4: Despesa 2
C5: 342.00 | D5: Despesa 1
C6: 110.00 | D6: Despesa 3
C7: 84.00 | D7: Despesa 4
C8: 54.00 | D8: Despesa 5
A9: Total | C9: =SUBTOTAL(109,DespFev[Valor]) -> 861.00

Sheet mar
A1: DESPESAS DE MARÇO | D1: Resumo | E1: Dicas
A2: Data | B2: N.º da ordem de compra | C2: Valor | D2: Categoria | E2: Descrição
A3: =DATE(YEAR(TODAY()),3,5) -> 2016-03-05 | B3: A-12345 | C3: 33.00 | D3: Despesa 1 | E3: Suprimentos
A4: =DATE(YEAR(TODAY()),3,6) -> 2016-03-06 | B4: A-12346 | C4: 238.00 | D4: Despesa 2
C5: 55.00 | D5: Despesa 5
C6: 110.00 | D6: Despesa 3
C7: 84.00 | D7: Despesa 4
C8: 54.00 | D8: Despesa 5
A9: Total | C9: =SUBTOTAL(109,DespMar[Valor]) -> 574.00

Sheet abr
A1: DESPESAS DE ABRIL | D1: Resumo | E1: Dicas
A2: Data | B2: N.º da ordem de compra | C2: Valor | D2: Categoria | E2: Descrição
A3: =DATE(YEAR(TODAY()),4,4) -> 2016-04-04 | B3: A-12345 | C3: 45.00 | D3: Despesa 1 | E3: Suprimentos
A4: =DATE(YEAR(TODAY()),4,8) -> 2016-04-08 | B4: A-12346 | C4: 123.00 | D4: Despesa 2
C5: 342.00 | D5: Despesa 4
C6: 125.00 | D6: Despesa 3
C7: 84.00 | D7: Despesa 4
C8: 98.00 | D8: Despesa 5
A9: Total | C9: =SUBTOTAL(109,DespAbr[Valor]) -> 817.00

Sheet mai
A1: DESPESAS DE MAIO | D1: Resumo | E1: Dicas
A2: Data | B2: N.º da ordem de compra | C2: Valor | D2: Categoria | E2: Descrição
A3: =DATE(YEAR(TODAY()),5,3) -> 2016-05-03 | B3: A-12345 | C3: 33.00 | D3: Despesa 1 | E3: Suprimentos
A4: =DATE(YEAR(TODAY()),5,8) -> 2016-05-08 | B4: A-12346 | C4: 111.00 | D4: Despesa 2
C5: 342.00 | D5: Despesa 1
C6: 333.00 | D6: Despesa 3
C7: 125.00 | D7: Despesa 4
C8: 33.00 | D8: Despesa 5
A9: Total | C9: =SUBTOTAL(109,DespMai[Valor]) -> 977.00

Sheet jun
A1: DESPESAS DE JUNHO | D1: Resumo | E1: Dicas
A2: Data | B2: N.º da ordem de compra | C2: Valor | D2: Categoria | E2: Descrição
A3: =DATE(YEAR(TODAY()),6,7) -> 2016-06-07 | B3: A-12345 | C3: 201.00 | D3: Despesa 1 | E3: Suprimentos
A4: =DATE(YEAR(TODAY()),6,8) -> 2016-06-08 | B4: A-12346 | C4: 98.00 | D4: Despesa 2
C5: 342.00 | D5: Despesa 5
C6: 122.00 | D6: Despesa 3
C7: 187.00 | D7: Despesa 4
C8: 99.00 | D8: Despesa 5
A9: Total | C9: =SUBTOTAL(109,DespJun[Valor]) -> 1,049.00

Sheet jul
A1: DESPESAS DE JULHO | D1: Resumo | E1: Dicas
A2: Data | B2: N.º da ordem de compra | C2: Valor | D2: Categoria | E2: Descrição
A3: =DATE(YEAR(TODAY()),7,9) -> 2016-07-09 | B3: A-12345 | D3: Despesa 1 | E3: Suprimentos
A4: =DATE(YEAR(TODAY()),7,14) -> 2016-07-14 | B4: A-12346 | D4: Despesa 2
D5: Despesa 2
D6: Despesa 3
D7: Despesa 4
D8: Despesa 5
A9: Total | C9: =SUBTOTAL(109,DespJul[Valor]) -> 0.00

Sheet ago
A1: DESPESAS DE AGOSTO | D1: Resumo | E1: Dicas
A2: Data | B2: N.º da ordem de compra | C2: Valor | D2: Categoria | E2: Descrição
A3: =DATE(YEAR(TODAY()),8,8) -> 2016-08-08 | B3: A-12345 | D3: Despesa 1 | E3: Suprimentos
A4: =DATE(YEAR(TODAY()),8,9) -> 2016-08-09 | B4: A-12346 | D4: Despesa 2
D5: Despesa 2
D6: Despesa 3
D7: Despesa 4
D8: Despesa 5
A9: Total | C9: =SUBTOTAL(109,DespAgo[Valor]) -> 0.00

Sheet set
A1: DESPESAS DE SETEMBRO | D1: Resumo | E1: Dicas
A2: Data | B2: N.º da ordem de compra | C2: Valor | D2: Categoria | E2: Descrição
A3: =DATE(YEAR(TODAY()),9,9) -> 2016-09-09 | B3: A-12345 | D3: Despesa 1 | E3: Suprimentos
A4: =DATE(YEAR(TODAY()),9,15) -> 2016-09-15 | B4: A-12346 | D4: Despesa 2
D5: Despesa 2
D6: Despesa 3
D7: Despesa 4
D8: Despesa 5
A9: Total | C9: =SUBTOTAL(109,DespSet[Valor]) -> 0.00

Sheet out
A1: DESPESAS DE OUTUBRO | D1: Resumo | E1: Dicas
A2: Data | B2: N.º da ordem de compra | C2: Valor | D2: Categoria | E2: Descrição
A3: =DATE(YEAR(TODAY()),10,10) -> 2016-10-10 | B3: A-12345 | D3: Despesa 1 | E3: Suprimentos
A4: =DATE(YEAR(TODAY()),10,21) -> 2016-10-21 | B4: A-12346 | D4: Despesa 2
D5: Despesa 2
D6: Despesa 3
D7: Despesa 4
D8: Despesa 5
A9: Total | C9: =SUBTOTAL(109,DespOut[Valor]) -> 0.00

Sheet nov
A1: DESPESAS DE NOVEMBRO | D1: Resumo | E1: Dicas
A2: Data | B2: N.º da ordem de compra | C2: Valor | D2: Categoria | E2: Descrição
A3: =DATE(YEAR(TODAY()),11,14) -> 2016-11-14 | B3: A-12345 | D3: Despesa 1 | E3: Suprimentos
A4: =DATE(YEAR(TODAY()),11,21) -> 2016-11-21 | B4: A-12346 | D4: Despesa 2
D5: Despesa 2
D6: Despesa 3
D7: Despesa 4
D8: Despesa 5
A9: Total | C9: =SUBTOTAL(109,DespNov[Valor]) -> 0.00

Sheet dez
A1: DESPESAS DE DEZEMBRO | D1: Resumo | E1: Dicas
A2: Data | B2: N.º da ordem de compra | C2: Valor | D2: Categoria | E2: Descrição
A3: =DATE(YEAR(TODAY()),12,2) -> 2016-12-02 | B3: A-12345 | C3: 201.00 | D3: Despesa 1 | E3: Suprimentos
A4: =DATE(YEAR(TODAY()),12,24) -> 2016-12-24 | B4: A-12346 | C4: 98.00 | D4: Despesa 2
C5: 342.00 | D5: Despesa 2
C6: 122.00 | D6: Despesa 3
C7: 187.00 | D7: Despesa 4
C8: 99.00 | D8: Despesa 5
A9: Total | C9: =SUBTOTAL(109,DespDez[Valor]) -> 1,049.00
